Cogmind - Beta 10.2 @@@ ROGUE MODE // 2020.11.11 @ 17:31:38 Player: Andru7428 Result: Destroyed by D-53 Grenadier with Mini Grenade Launcher Performance ------------- Evolutions (0) 0 Regions Visited (2) 400 Robots Destroyed (27) 135 Value Destroyed (503) 503 Prototype IDs (0) 0 Alien Tech Used (0) 0 Bonus (0) 0 TOTAL SCORE: 1038 Bonus ------- None Cogmind --------- Core Integrity 0/250 Matter 205/300 Energy 225/265 System Corruption 0% Temperature Cool (3) Movement Treading (180) Ox1 Location -10/Mines Parts ------- > --- POWER (1) -------- Improved Ion Engine > --- PROPULSION (2) --- Light Treads Light Treads > --- UTILITY (2) ------ Large Storage Unit Large Storage Unit > --- WEAPON (2) ------- EM Pulse Gun EM Pulse Gun > --- INVENTORY (16) --- Improved Ion Engine Light Treads Light Treads Light Treads Medium Armor Plating Medium Armor Plating Medium Armor Plating Medium Armor Plating EM Pulse Gun Light Assault Rifle Light Assault Rifle Mining Laser Peak State ------------ > --- POWER ------------ Improved Ion Engine > --- PROPULSION ------- Light Treads Light Treads > --- UTILITY ---------- Large Storage Unit Large Storage Unit > --- WEAPON ----------- EM Pulse Gun Assault Rifle > --- INVENTORY -------- Improved Ion Engine Light Treads Light Treads Light Treads Medium Armor Plating Medium Armor Plating Medium Armor Plating Medium Armor Plating EM Pulse Gun EM Pulse Gun Light Assault Rifle Light Assault Rifle Grenade Launcher Grenade Launcher Mining Laser [Rating: 10] Favorites ----------- Power Improved Ion Engine Engine Improved Ion Engine Propulsion Light Treads Treads Light Treads Utility Large Storage Unit Storage Large Storage Unit Weapon Assault Rifle Energy Gun EM Pulse Gun Ballistic Gun Assault Rifle Launcher Grenade Launcher Build | -11 -10 -10 ------- Run | Scr Mat Min Slots Evolved . | . . . Power . | . . . Propulsion . | . . . Utility . | . . . Weapon . | . . . Parts Attached 32 | 6 19 7 Power 4 | 1 3 . Engine 4 | 1 3 . Core . | . . . Reactor . | . . . Propulsion 10 | 2 7 1 Treads 10 | 2 7 1 Leg . | . . . Wheel . | . . . Hover . | . . . Flight . | . . . Utility 6 | 1 5 . Device . | . . . Storage 6 | 1 5 . Processor . | . . . Hackware . | . . . Protection . | . . . Artifact . | . . . Weapon 12 | 2 4 6 Energy Gun 2 | . 1 1 Energy Cannon . | . . . Ballistic Gun 6 | 2 2 2 Ballistic Cannon . | . . . Launcher 4 | . 1 3 Special Weapon . | . . . Impact Weapon . | . . . Slashing Weapon . | . . . Piercing Weapon . | . . . Special Melee Weapon . | . . . Unidentified Prototypes . | . . . Parts Lost 4 | . 2 2 Power 1 | . 1 . Propulsion . | . . . Utility . | . . . Weapon 3 | . 1 2 Highest Loss Streak 2 | . 1 2 Average Slot Usage (%) 97 | . 96 100 Engine 14 | . 14 14 Treads 28 | . 28 28 Storage 25 | . 24 28 Energy Gun 7 | . 4 14 Ballistic Gun 20 | . 22 13 Naked Turns . | . . . Heaviest Build 43 | 11 43 43 Greatest Support 40 | 40 40 40 Greatest Overweight (x) 1 | . 1 1 Average Overweight (x) . | . . 1 Largest Inventory Capacity 16 | 6 16 16 Average Capacity 12 | 5 11 16 Most Carried 15 | 5 14 15 Average Carried 10 | 3 9 14 Final Capacity 16 | 6 16 16 Final Carried 14 | 5 14 12 Class Distribution -------------------- 100% | Mutant Dominant Class ---------------- Mutant | -10/Materials Mutant | -10/Mines Resources | -11 -10 -10 ----------- Run | Scr Mat Min Matter Collected 883 | 296 533 54 Remotely . | . . . Salvage Created 831 | 112 637 82 Parts 58 | 3 51 4 Haulers Intercepted 2 | . 2 . Recyclers Shooed . | . . . Parts Field Recycled . | . . . Retrieved Matter . | . . . Parts Self-Destructed . | . . . Prevented . | . . . Kills | -11 -10 -10 ------- Run | Scr Mat Min Combat Hostiles Destroyed 36 | . 19 17 Guns 16 | . 16 . AOE 20 | . 3 17 Classes Destroyed 7 | 2 4 1 Tunneler 1 | 1 . . Hauler 2 | . 2 . Recycler 1 | 1 . . Watcher 1 | . 1 . Swarmer 12 | . 9 3 Grunt 10 | . 10 . Assembled 14 | . . 14 Best Kill Streak 14 | 2 7 14 Combat Bots Only 14 | . 6 14 Max Kills in Single Turn 6 | 1 2 6 Gunslinging . | . . . Exploded 6 | . 2 6 Melee . | . . . Uniques/NPCs Destroyed . | . . . Combat | -11 -10 -10 -------- Run | Scr Mat Min Damage Taken 1125 | . 679 446 Core 262 | . 107 155 Absorbed by Shields . | . . . Core Remaining (%) 100 | 100 . . Volleys Fired 78 | 6 61 11 Largest 2 | 2 2 2 Hottest 80 | 40 60 80 Shots Fired 145 | 12 120 13 Gun 135 | 12 118 5 Cannon . | . . . Launcher 10 | . 2 8 Special . | . . . Kinetic 126 | 12 113 1 Thermal . | . . . Explosive 10 | . 2 8 Electromagnetic 9 | . 5 4 Robot Hit Streak 8 | 2 8 4 Robot Miss Streak 4 | 2 4 2 Penetration Max . | . . . Secondary Targets 4 | . 4 . Max Gunslinging Chain 1 | . 1 . Shots Hit Robots 74 | 5 60 9 Core Hits 73 | 3 33 37 Critical Hits 2 | . 2 . Critical Kills 1 | . 1 . Critical Parts Destroyed 1 | . 1 . Melee Attacks . | . . . Impact . | . . . Slashing . | . . . Piercing . | . . . Sneak Attacks . | . . . Combat Hostiles . | . . . Follow-up Attacks . | . . . Damage Inflicted 2119 | 74 880 1165 Guns 910 | 74 802 34 Cannons . | . . . Explosions 1209 | . 78 1131 Melee . | . . . Ramming . | . . . Kinetic 845 | 74 760 11 Thermal . | . . . Explosive 1209 | . 78 1131 Electromagnetic 65 | . 42 23 Impact . | . . . Slashing . | . . . Piercing . | . . . Highest Corruption . | . . . Average Corruption . | . . . Corruption Purged . | . . . Overload Shots . | . . . Overflow Damage 25 | . . 25 Projectiles . | . . . Explosions 25 | . . 25 Melee . | . . . Knockbacks . | . . . Impact . | . . . Kinetic . | . . . Secondary . | . . . Self-Inflicted Damage . | . . . Shots . | . . . Rammed . | . . . Targets Rammed . | . . . Kicked . | . . . Crushed . | . . . Highest Temperature 41 | . 15 41 Average Temperature 12 | . 5 21 Received Heat Transfer 268 | . 168 100 Siege Activations . | . . . Robots Corrupted . | . . . Combat Hostiles . | . . . Parts Fried . | . . . Impact Corruptions . | . . . Robots Melted . | . . . Combat Hostiles . | . . . Parts Melted . | . . . Heat Transferred . | . . . Parts Sabotaged . | . . . Parts Stolen . | . . . Parts Stripped . | . . . Power Chain Reactions . | . . . Missiles Intercepted . | . . . Alert | -11 -10 -10 ------- Run | Scr Mat Min Peak Influence 377 | 10 377 165 Initial 80 | . 6 80 Average 163 | 2 210 75 Maximum Alert Level 1 | . 1 . Low Security (%) 51 | 100 28 100 Level 1 48 | . 71 . Level 2 . | . . . Level 3 . | . . . Level 4 . | . . . Level 5 . | . . . High Security . | . . . Max Security . | . . . Squads Dispatched 4 | . 4 . Investigation 2 | . 2 . Extermination . | . . . Reinforcement 2 | . 2 . Assault . | . . . Garrison . | . . . Intercept . | . . . Construction Impeded . | . . . Haulers Reinforced . | . . . Stealth | -11 -10 -10 --------- Run | Scr Mat Min Distress Signals 2 | . 2 . Communications Jammed . | . . . Distress Signals . | . . . Times Spotted 53 | . 28 25 Peak Tracking Total 19 | . 5 19 Tactical Retreats 4 | . 3 1 Traps | -11 -10 -10 ------- Run | Scr Mat Min Traps Triggered 4 | . 4 . Indirectly . | . . . Trap Hack Attempts . | . . . Triggered . | . . . Disarmed . | . . . Reprogrammed . | . . . Reused . | . . . Traps Extracted . | . . . Installed . | . . . Triggered . | . . . Machines | -11 -10 -10 ---------- Run | Scr Mat Min Machines Disabled 2 | . 1 1 Max in Single Turn 1 | . 1 1 Machines Sabotaged . | . . . Garrisons Compromised . | . . . Overloaded Fab Kills . | . . . Fab Network Shutdowns . | . . . Hacking | -11 -10 -10 --------- Run | Scr Mat Min Machines Accessed 7 | . 7 . Terminals 5 | . 5 . Fabricators . | . . . Repair Stations . | . . . Recycling Units 2 | . 2 . Scanalyzers . | . . . Garrison Access . | . . . Total Hacks 18 | . 18 . Successful 6 | . 6 . Failed 12 | . 12 . Catastrophic 1 | . 1 . Database Lockouts . | . . . Manual 15 | . 15 . Terminals 16 | . 16 . Fabricators . | . . . Repair Stations . | . . . Recycling Units 2 | . 2 . Scanalyzers . | . . . Garrison Access . | . . . Terminal Hacks 4 | . 4 . Robot Analysis 3 | . 3 . Locate Traps 1 | . 1 . Fabricator Hacks . | . . . Repair Station Hacks . | . . . Recycling Unit Hacks . | . . . Scanalyzer . | . . . Garrison Access Hacks . | . . . Unauthorized Hacks 2 | . 2 . Terminals . | . . . Fabricators . | . . . Repair Stations . | . . . Recycling Units 2 | . 2 . Tunnel 2 | . 2 . Scanalyzers . | . . . Garrison Access . | . . . Data Cores Recovered . | . . . Used . | . . . Hacking Detections 5 | . 5 . Full Trace Events . | . . . Feedback Events . | . . . Feedback Blocked . | . . . Robot Schematics Acquired . | . . . Robots Built . | . . . Matter . | . . . Time . | . . . Total Robot Build Rating . | . . . Part Schematics Acquired . | . . . Parts Built . | . . . Matter . | . . . Time . | . . . Total Part Build Rating . | . . . Parts Repaired . | . . . Time . | . . . Parts Recycled . | . . . Recycled Matter . | . . . Retrieved Matter . | . . . Retrieved Components . | . . . Parts Scanalyzed . | . . . Part Schematics Acquired . | . . . Parts Damaged . | . . . Bothacking | -11 -10 -10 ------------ Run | Scr Mat Min Used RIF Installer . | . . . Robots Hacked . | . . . Non-combat . | . . . Combat . | . . . Robot Hacks Applied . | . . . Relay Couplers Released . | . . . Robots Rewired . | . . . Allies Hacked . | . . . Hacks Repelled . | . . . Allies | -11 -10 -10 -------- Run | Scr Mat Min Total Allies . | . . . Largest Group . | . . . Highest-Rated Group . | . . . Highest-Rated Ally . | . . . Total Orders . | . . . Ally Attacks . | . . . Total Damage . | . . . Kills . | . . . Allies Corrupted . | . . . Allies Melted . | . . . Intel | -11 -10 -10 ------- Run | Scr Mat Min Robot Analysis Total 3 | . 3 . Derelict Logs Recovered 3 | . . 3 Drone Launches . | . . . Drone Recoveries . | . . . Exploration | -11 -10 -10 ------------- Run | Scr Mat Min Turns Passed 2204 | 132 1505 567 Spaces Moved 1121 | 65 760 296 Core 3 | 3 . . Treads 1118 | 62 760 296 Legs . | . . . Wheels . | . . . Hover . | . . . Flight . | . . . Fastest Speed 50 | 50 160 180 Average Speed 168 | 154 164 180 Slowest Speed 180 | 160 180 180 Overloaded Moves . | . . . Propulsion Burnouts . | . . . Robots Hopped . | . . . Cave-ins Triggered . | . . . Exploration Rate (%) 50 | 5 81 66 Regions Visited 2 Branch Regions 1 Pre-discovered Areas 6 | . 2 4 Known Exits Taken . | . . . Unknown Exits Taken 2 | 1 1 . Scrap Searched 2 | . . 2 Spaces Dug . | . . . Terrain Destroyed 59 | . 21 38 Melee . | . . . Projectile . | . . . AOE 59 | . 21 38 Terrain Rammed . | . . . Walls Destroyed . | . . . Machines Disabled . | . . . Actions | -11 -10 -10 --------- Run | Scr Mat Min Total 1298 | 82 898 318 Wait 27 | . 23 4 Move 1119 | 64 759 296 Hop . | . . . Pick Up 25 | 6 19 . Fast Attach 10 | 5 5 . Attach 6 | 1 2 3 Detach . | . . . Swap 16 | . 12 4 Drop 17 | . 17 . Fire 78 | 6 61 11 Melee . | . . . Ram . | . . . Kick . | . . . Crush . | . . . Escape Stasis . | . . . Rewire . | . . . Trap . | . . . Miscellaneous . | . . . Route ------- -11/Scrapyard -10/Materials (discovered 4 exits: [*Mat x2] / [*Min x2]) -10/Mines (discovered 2 exits: [*Mat x2]) History --------- Turn | Location | Event 17 | -11/Scrapyard | Discovered new exit (range 15) 133 | -11/Scrapyard | Entered Materials 295 | -10/Materials | Discovered new exit (range 15) 307 | -10/Materials | Build established: Mutant 641 | -10/Materials | Discovered new exit (range 7) 889 | -10/Materials | Discovered new exit (range 5) 1243 | -10/Materials | Discovered new exit (range 11) 1638 | -10/Materials | Entered Mines 1745 | -10/Mines | Discovered new exit (range 10) 1750 | -10/Mines | Learned location of Zion (-7) 1872 | -10/Mines | Learned location of Recycling (-7) 2000 | -10/Mines | Discovered new exit (range 10) 2178 | -10/Mines | Assembled infested the area 2193 | -10/Mines | Core integrity fell below 50% 2204 | -10/Mines | Core integrity fell below 20% 2205 | -10/Mines | Destroyed by D-53 Grenadier with Mini Grenade Launcher Last Messages --------------- 02189_ as-74707 destroyed. 02189_ as-32564 destroyed. 02189_ as-99130 destroyed. 02189_ as-35983 destroyed. 02189_ as-42995 destroyed. 02191_ Grenade Launcher destroyed. 02192_ as-71135 destroyed. 02194_ Destroyed Asb. F-torch. 02194_ Destroyed Asb. Rifle. 02194_ as-14006 destroyed. 02194_ as-89126 destroyed. 02195_ Grenade Launcher severed. 02198_ The unstable cave ceiling collapses. 02198_ as-43154 destroyed. 02203_ C-30 ARC bursts open, deploying its payload. 02203_ D-53 Grenadier unfolds itself. 02203_ as-58873 destroyed. 02203_ Assault Rifle destroyed. 02204_ U-05 Engineer lays Concrete. 02205_ as-88823 destroyed. Map ----- +----------------------------------------------------+ | ????????????????????????????????????????? | | ????????????????????????????????????????? | | ????????????????????????????????????????? | | ????????????????????????????????????????? | | ????????????????????????????????????????? | | ????????????????????????????????????????? | | ????????????????????????????????????????? | | ????????????????????????????????????????? | | ????????? ??????????????????????????????? | | ???????? #?????????????????????????????? | | ??????? #?????????????????????????????? | | ??????? #?????????????????????????????? | | ?????? #????????# ???????????????????? | | ?????? #????????# ??????????????????? | | ????? #????????## ??????????????????? | | ????? ##???????# ####??????????????? | | ????# #####??## %% #?????????????? | | ???? #### ?????????????? | | #### ## ?????????????? | | ## ?????????????? | | # ?????????????? | | ## ### ## u ###???????????? | | ?# #???? ##?# #???????????? | | ## ##??????#???# #???????????? | | ##?# ??????# #???????????? | | ## #????# # @ ##??????????? | | #?????????## #?????????? | | """ #??????????# #?????????? | | """ #??????????#### dd #?????????? | | """ ##????????#######% #?????????? | | ##?????????# ##?????????? | | ##??????????# ##??????????? | | #######?????????### ## #???????????? | | #######??????????# ### ##???????????? | | #??????????# #?###????????????? | | #??????????# ####????????????????? | | ##### #??????????# #???????????????????? | | #??# #??????????# #???????????????????? | | #?# #??????????# #???????????????????? | | #?# #??????????# #???????????????????? | | #?# #?????####?# #???????????????????? | | ##?# ####### ### #??????####?????????? | | ##??# !!! ##????## ##????????? | | #???# #???## #????????? | | #???##!####### #??## #????????? | | #????# #?????## ##??# #????????? | | ?????# #??????## #??## ##???????? | | ?????# #???????# #### ######??? | | ?????# #??????## ## ##?? | | ?????# #?????## ## #?? | +----------------------------------------------------+ Best States ------------- Heat Dissipation 25 Energy Generation 12 Energy Capacity 265 Matter Stores 300 Matter Capacity 300 Sight Range 16 Terrain Scan Density 10 Evasion (%) 40 Recoil Reduction 2 Item Schematics ----------------- None Robot Schematics ------------------ None Fabricated ------------ Nothing Alien Tech Used ----------------- None Achievements -------------- None Challenges ------------ None Game ------ Seed LargeFlightShockpuncher Manual? 0 Play Time 00:11:51 Cumulative 119.0 hours Start 2020.11.11 @ 17:21:48 End 2020.11.11 @ 17:31:38 Sessions 1 Manual Loads 0 Difficulty Rogue Special Mode None Game No. 89 Rogue 89 Adventurer 0 Explorer 0 Win Type - Total 1 Types 1/0/0/0/0/0/0/0/0 Lore% 61 Gallery% 69 Achievement% 56 Wizard Run 0 Options --------- ASCII 0 Keyboard 1 Movement Numpad Keybinds 0 Fullscreen 2 Font 18/Smallcaps Map View 76x50 Tactical HUD 1 Map Filters NONE Filters NONE Steam 1 RUN: 99cd0499-2a29-4ebd-aad0-85d60015b9f5